fUST/lending_fUST_20250811
["ID","MTS","AMOUNT","RATE_DAILY","PERIOD"]
[378487624,1754884470065,460.0,0.00019953,2]
[378487625,1754884471385,460.0,0.00019953,2]
[378487627,1754884474565,464.59220174,0.00019953,2]
[378487628,1754884477262,460.0,0.00019953,2]
[378487629,1754884477454,460.0,0.00019953,2]
[378487630,1754884478456,1011.98,0.00019953,2]
[378487631,1754884483349,2002.77,0.00019953,2]
[378487632,1754884485422,460.0,0.00019953,2]
[378487633,1754884485492,460.0,0.00019953,2]
[378487634,1754884489262,460.0,0.00019953,2]
[378487635,1754884495641,349.4685447,0.00019953,2]
[378487636,1754884496669,460.29294075,0.00019953,2]
[378487637,1754884499155,460.0,0.00019953,2]
[378487639,1754884502596,460.0,0.00019953,2]
[378487640,1754884508734,460.0,0.00019953,2]
[378487641,1754884509777,460.74934577,0.00019953,2]
[378487642,1754884513280,462.05893686,0.00019953,2]
[378487643,1754884514134,461.52129534,0.00019953,2]
[378487644,1754884515425,460.0,0.00019953,2]
[378487645,1754884516126,460.0,0.00019953,2]
[378487646,1754884519193,460.0,0.00019953,2]
[378487647,1754884522274,463.10484667,0.00019953,2]
[378487648,1754884525667,460.0,0.00019953,2]
[378487649,1754884529624,460.0,0.00019953,2]
[378487650,1754884529953,460.0,0.00019953,2]
[378487651,1754884531122,1606.85,0.00019953,2]
[378487653,1754884535422,460.0,0.00019953,2]
[378487654,1754884538828,460.0,0.00019953,2]
[378487655,1754884540511,235.2618485,0.00019953,2]
[378487656,1754884543377,599.498388,0.00019953,2]
[378487657,1754884544708,562.23,0.00019953,2]
[378487658,1754884545308,460.0,0.00019953,2]
[378487659,1754884546461,460.41833228,0.00019953,2]
[378487660,1754884548740,460.0,0.00019953,2]
[378487661,1754884552844,460.0,0.00019953,2]
[378487662,1754884553372,460.0,0.00019953,2]
[378487663,1754884556580,460.0,0.00019953,2]
[378487664,1754884557532,460.0,0.00019953,2]
[378487665,1754884560843,460.0,0.00019953,2]
[378487666,1754884571460,1735.34,0.00019953,2]
[378487667,1754884575007,507.51,0.00019953,2]
[378487668,1754884576132,550.95577573,0.00019953,2]
[378487669,1754884580985,460.0,0.00019953,2]
[378487670,1754884588964,460.0,0.00019953,2]
[378487671,1754884590444,468.55317735,0.00019953,2]
[378487672,1754884591650,519.83126337,0.00019953,2]
[378487673,1754884599344,500.0,0.00019953,2]
[378487674,1754884599720,1663.03,0.00019953,2]
[378487675,1754884604778,461.42814951,0.00019953,2]
[378487677,1754884605393,460.0,0.00019953,2]
[378487678,1754884606291,1684.42,0.00019953,2]
[378487679,1754884607525,460.0,0.00019953,2]
[378487680,1754884608605,460.0,0.00019953,2]
[378487681,1754884610406,467.73685556,0.00019953,2]
[378487682,1754884611040,460.0,0.00019953,2]
[378487683,1754884612897,460.0,0.00019953,2]
[378487684,1754884622204,3103.80273468,0.000199,2]
[378487685,1754884626830,460.0,0.00019953,2]
[378487686,1754884627721,508.33758167,0.00019953,2]
[378487687,1754884637085,357.1399445,0.00019953,2]
[378487688,1754884643915,1064.88,0.00019953,2]
[378487689,1754884644960,460.0,0.00019953,2]
[378487690,1754884651280,462.38107018,0.00019953,2]
[378487691,1754884657470,913.11,0.00019953,2]
[378487692,1754884658983,460.0,0.00019953,2]
[378487694,1754884664135,460.0,0.00019953,2]
[378487696,1754884671700,469.20096761,0.00019953,2]
[378487697,1754884676938,343.79756744,0.00019953,2]
[378487698,1754884679701,460.0,0.00019953,2]
[378487699,1754884680473,460.0,0.00019953,2]
[378487700,1754884682345,215.94527272,0.00019953,2]
[378487701,1754884683323,460.0,0.00019953,2]
[378487702,1754884685460,460.0,0.00019953,2]
[378487703,1754884689191,460.0,0.00019953,2]
[378487704,1754884692971,460.0,0.00019953,2]
[378487705,1754884693335,460.0,0.00019953,2]
[378487706,1754884695462,460.0,0.00019953,2]
[378487713,1754884705683,570.41,0.00019953,2]
[378487714,1754884707338,460.0,0.00019953,2]
[378487715,1754884709505,462.57637401,0.00019953,2]
[378487716,1754884712067,466.55652126,0.00019953,2]
[378487717,1754884713445,460.83756881,0.00019953,2]
[378487718,1754884714169,460.0,0.00019953,2]
[378487719,1754884717512,460.0,0.00019953,2]
[378487720,1754884719144,460.0,0.00019953,2]
[378487721,1754884721981,460.0,0.00019953,2]
[378487724,1754884727932,460.0,0.00019953,2]
[378487725,1754884729884,460.0,0.00019953,2]
[378487726,1754884731763,460.0,0.00019953,2]
[378487727,1754884732639,460.0,0.00019953,2]
[378487728,1754884734552,470.06158457,0.00019953,2]
[378487729,1754884737954,460.0,0.00019953,2]
[378487730,1754884738131,237.50445013,0.00019953,2]
[378487731,1754884743510,460.0,0.00019953,2]
[378487732,1754884745494,460.0,0.00019953,2]
[378487733,1754884748316,460.0,0.00019953,2]
[378487734,1754884748561,460.0,0.00019953,2]
[378487735,1754884751371,551.92,0.00019953,2]
[378487736,1754884752671,460.0,0.00019953,2]
[378487737,1754884753794,1539.89,0.00019953,2]
[378487738,1754884755905,460.0,0.00019953,2]
[378487739,1754884757601,3571.86,0.00019953,2]
[378487740,1754884758117,460.0,0.00019953,2]
[378487741,1754884765826,460.0,0.00019953,2]
[378487742,1754884766610,460.0,0.00019953,2]
[378487743,1754884768654,460.0,0.00019953,2]
[378487744,1754884776437,460.0,0.00019953,2]
[378487745,1754884777238,1441.16,0.00019953,2]
[378487746,1754884781907,460.0,0.00019953,2]
[378487747,1754884786287,1308.21,0.00019953,2]
[378487748,1754884792415,460.0,0.00019953,2]
[378487749,1754884806138,460.0,0.00019953,2]
[378487750,1754884807490,908.81,0.00019953,2]
[378487751,1754884809159,460.0,0.00019953,2]
[378487753,1754884823645,463.54,0.00019953,2]
[378487754,1754884828123,460.0,0.00019953,2]
[378487755,1754884830961,3000.34264364,0.000199,2]
[378487756,1754884836773,460.0,0.00019953,2]
[378487757,1754884847573,460.0,0.00019953,2]
[378487758,1754884851420,460.0,0.00019953,2]
[378487759,1754884852388,460.0,0.00019953,2]
[378487760,1754884852514,460.0,0.00019953,2]
[378487761,1754884853549,460.0,0.00019953,2]
[378487762,1754884854117,813.72,0.00019953,2]
[378487763,1754884855550,460.0,0.00019953,2]
[378487764,1754884856652,137.95950033,0.00019953,2]
[378487805,1754885079394,162.723387,0.00013699,2]
[378487863,1754885328793,180.0,0.00029,120]
[378487870,1754885342755,179.29799218,0.000189,2]
[378487928,1754885432747,-252.76023758,0.00019852,2]
[378487930,1754885432757,-300.0,0.00019951,2]
[378487932,1754885432766,-39.61875142,0.00019951,2]
[378487937,1754885432799,-260.38124858,0.00019951,2]
[378487938,1754885432809,-300.0,0.00019951,2]
[378487939,1754885432819,-300.0,0.00019951,2]
[378487940,1754885432828,-300.0,0.00019951,2]
[378487941,1754885432838,-1200.0,0.00019951,2]
[378487942,1754885432848,-376.84874632,0.00019952,2]
[378487943,1754885432858,-996.95,0.00019952,2]
[378487944,1754885432868,-460.0,0.00019953,2]
[378487945,1754885432877,-778.89747082,0.00019953,2]
[378487946,1754885432887,-463.11882144,0.00019953,2]
[378487947,1754885432897,-460.0,0.00019953,2]
[378487949,1754885432907,-460.0,0.00019953,2]
[378487951,1754885432916,-460.0,0.00019953,2]
[378487953,1754885432926,-460.0,0.00019953,2]
[378487955,1754885432936,-461.29523615,0.00019953,2]
[378487957,1754885432945,-460.0,0.00019953,2]
[378487959,1754885432954,-349.46749567,0.00019953,2]
[378488063,1754885438729,-3098.85493477,0.000199,2]
[378488064,1754885438739,-501.01,0.00019952,2]
[378488065,1754885438748,-110.53250433,0.00019953,2]
[378488066,1754885438758,-853.01,0.00019953,2]
[378488067,1754885438767,-460.0,0.00019953,2]
[378488068,1754885438777,-460.0,0.00019953,2]
[378488069,1754885438786,-460.0,0.00019953,2]
[378488070,1754885438795,-460.0,0.00019953,2]
[378488071,1754885438804,-460.0,0.00019953,2]
[378488072,1754885438813,-3270.82,0.00019953,2]
[378488073,1754885438822,-539.67,0.00019953,2]
[378488074,1754885438831,-460.0,0.00019953,2]
[378488075,1754885438841,-969.82,0.00019953,2]
[378488076,1754885438851,-460.0,0.00019953,2]
[378488077,1754885438860,-460.0,0.00019953,2]
[378488078,1754885438869,-460.0,0.00019953,2]
[378488079,1754885438879,-460.0,0.00019953,2]
[378488080,1754885438888,-460.0,0.00019953,2]
[378488081,1754885438900,-460.0,0.00019953,2]
[378488082,1754885438909,-460.0,0.00019953,2]
[378488083,1754885438919,-460.0,0.00019953,2]
[378488084,1754885438928,-460.0,0.00019953,2]
[378488085,1754885438938,-1614.23,0.00019953,2]
[378488086,1754885438947,-460.0,0.00019953,2]
[378488087,1754885438957,-460.0,0.00019953,2]
[378488088,1754885438966,-460.0,0.00019953,2]
[378488089,1754885438975,-287.12257803,0.00019953,2]
[378488090,1754885438984,-460.0,0.00019953,2]
[378488091,1754885438994,-1253.7,0.00019953,2]
[378488092,1754885439003,-460.0,0.00019953,2]
[378488093,1754885439013,-870.94,0.00019953,2]
[378488094,1754885439022,-474.49386498,0.00019953,2]
[378488095,1754885439032,-460.0,0.00019953,2]
[378488096,1754885439041,-649.08122569,0.00019953,2]
[378488097,1754885439051,-779.81,0.00019953,2]
[378488098,1754885439060,-429.01582166,0.0002,2]
[378488099,1754885439069,-8498.31615464,0.00020052,2]
[378488100,1754885439079,-2292.84201233,0.00020052,2]
[378488101,1754885439088,-151.0,0.000201,3]
[378488102,1754885439097,-851.6,0.00020116,2]
[378488103,1754885439106,-460.0,0.00020116,2]
[378488104,1754885439115,-2006.04,0.00020116,2]
[378488105,1754885439125,-1593.97,0.00020116,2]
[378488106,1754885439134,-460.0,0.00020116,2]
[378488107,1754885439143,-460.0,0.00020116,2]
[378488108,1754885439152,-460.0,0.00020116,2]
[378488109,1754885439162,-460.0,0.00020116,2]
[378488110,1754885439171,-460.0,0.00020116,2]
[378488111,1754885439181,-460.0,0.00020116,2]
[378488112,1754885439190,-460.0,0.00020116,2]
[378488113,1754885439199,-743.63,0.00020116,2]
[378488114,1754885439208,-2158.02,0.00020117,3]
[378488115,1754885439218,-1079.01,0.00020117,3]
[378488116,1754885439229,-539.51,0.00020117,3]
[378488117,1754885439239,-269.75,0.00020117,3]
[378488118,1754885439248,-809.29,0.00020117,3]
[378488119,1754885439257,-460.0,0.00020125,2]
[378488120,1754885439267,-460.0,0.00020125,2]
[378488121,1754885439276,-460.0,0.00020125,2]
[378488122,1754885439285,-460.0,0.00020125,2]
[378488123,1754885439294,-460.0,0.00020125,2]
[378488124,1754885439304,-460.0,0.00020125,2]
[378488125,1754885439313,-460.0,0.00020125,2]
[378488126,1754885439322,-460.0,0.00020125,2]
[378488127,1754885439331,-460.0,0.00020125,2]
[378488128,1754885439341,-3206.98429312,0.00020125,6]
[378488129,1754885439351,-460.0,0.00020125,2]
[378488130,1754885439360,-460.0,0.00020125,2]
[378488131,1754885439369,-460.0,0.00020125,2]
[378488132,1754885439378,-460.0,0.00020125,2]
[378488133,1754885439387,-460.0,0.00020125,2]
[378488134,1754885439396,-546.7,0.00020125,2]
[378488135,1754885439405,-460.0,0.00020125,2]
[378488136,1754885439414,-467.02356039,0.00020125,2]
[378488137,1754885439424,-460.0,0.00020125,2]
[378488138,1754885439433,-369.49564465,0.00020125,2]
[378488139,1754885439441,-528.93,0.00020125,2]
[378488140,1754885439451,-460.0,0.00020125,2]
[378488141,1754885439460,-460.0,0.00020125,2]
[378488142,1754885439469,-460.0,0.00020125,2]
[378488143,1754885439478,-460.0,0.00020125,2]
[378488144,1754885439487,-2889.14,0.00020126,2]
[378488145,1754885439496,-460.0,0.00020126,2]
[378488146,1754885439505,-460.0,0.00020126,2]
[378488147,1754885439514,-460.0,0.00020126,2]
[378488148,1754885439524,-460.0,0.00020126,2]
[378488149,1754885439533,-1381.11,0.00020126,2]
[378488150,1754885439542,-1475.73,0.00020126,2]
[378488151,1754885439551,-1919.32,0.00020126,2]
[378488152,1754885439560,-460.0,0.00020126,2]
[378488153,1754885439569,-486.37,0.00020126,2]
[378488154,1754885439579,-620.62,0.00020126,2]
[378488155,1754885439589,-460.0,0.00020126,2]
[378488156,1754885439598,-1014.76,0.00020126,2]
[378488157,1754885439607,-500.0,0.00020126,2]
[378488158,1754885439616,-500.0,0.00020126,2]
[378488159,1754885439625,-500.0,0.00020126,2]
[378488160,1754885439634,-460.0,0.00020126,2]
[378488161,1754885439643,-500.0,0.00020126,2]
[378488162,1754885439652,-500.0,0.00020126,2]
[378488163,1754885439661,-500.0,0.00020126,2]
[378488164,1754885439671,-500.0,0.00020126,2]
[378488165,1754885439680,-500.0,0.00020126,2]
[378488166,1754885439689,-500.0,0.00020126,2]
[378488167,1754885439698,-500.0,0.00020126,2]
[378488168,1754885439707,-500.0,0.00020126,2]
[378488169,1754885439717,-875.06,0.00020126,2]
[378488170,1754885439727,-460.0,0.00020126,2]
[378488171,1754885439735,-500.0,0.00020126,2]
[378488172,1754885439745,-500.0,0.00020126,2]
[378488173,1754885439754,-500.0,0.00020126,2]
[378488174,1754885439763,-650.0,0.00020126,2]
[378488175,1754885439772,-500.0,0.00020126,2]
[378488176,1754885439782,-500.0,0.00020126,2]
[378488177,1754885439791,-300.0,0.00020126,2]
[378488178,1754885439801,-500.0,0.00020126,2]
[378488179,1754885439811,-500.0,0.00020126,2]
[378488180,1754885439821,-500.0,0.00020126,2]
[378488181,1754885439830,-226514.11577496,0.00020127,2]
[378488182,1754885439839,-212.58354937,0.00020152,2]
[378488183,1754885439849,-500.0,0.00020173,2]
[378488184,1754885439858,-565.9898197,0.00020173,2]
[378488185,1754885439868,-500.0,0.00020173,2]
[378488186,1754885439877,-500.0,0.00020173,2]
[378488187,1754885439887,-500.0,0.00020173,2]
[378488188,1754885439896,-491.36391457,0.00020173,2]
[378488189,1754885439905,-500.0,0.00020173,2]
[378488190,1754885439916,-500.0,0.00020173,2]
[378488191,1754885439926,-500.0,0.00020173,2]
[378488192,1754885439935,-500.0,0.00020173,2]
[378488193,1754885439944,-500.0,0.00020173,2]
[378488194,1754885439954,-500.0,0.00020173,2]
[378488195,1754885439963,-500.0,0.00020173,2]
[378488196,1754885439979,-500.0,0.00020173,2]
[378488197,1754885439992,-500.0,0.00020173,2]
[378488198,1754885440002,-500.0,0.00020173,2]
[378488199,1754885440011,-500.95313084,0.00020173,2]
[378488200,1754885440021,-500.0,0.00020173,2]
[378488201,1754885440031,-500.0,0.00020173,2]
[378488202,1754885440041,-500.0,0.00020173,2]
[378488203,1754885440051,-500.0,0.00020173,2]
[378488204,1754885440060,-500.0,0.00020173,2]
[378488205,1754885440070,-500.0,0.00020173,2]
[378488206,1754885440080,-503.85252823,0.00020173,2]
[378488207,1754885440090,-501.78201911,0.00020173,2]
[378488208,1754885440101,-996.95,0.00020226,2]
[378488209,1754885440111,-500.0,0.00020226,2]
[378488210,1754885440121,-460.0,0.00020227,2]
[378488211,1754885440131,-460.0,0.00020227,2]
[378488212,1754885440141,-460.0,0.00020227,2]
[378488213,1754885440150,-460.0,0.00020227,2]
[378488214,1754885440160,-460.0,0.00020227,2]
[378488215,1754885440169,-460.0,0.00020227,2]
[378488216,1754885440179,-460.0,0.00020227,2]
[378488217,1754885440188,-460.0,0.00020227,2]
[378488218,1754885440198,-460.0,0.00020227,2]
[378488219,1754885440207,-460.0,0.00020227,2]
[378488220,1754885440216,-460.0,0.00020227,2]
[378488221,1754885440229,-463.54,0.00020227,2]
[378488222,1754885440239,-460.0,0.00020227,2]
[378488223,1754885440248,-460.0,0.00020227,2]
[378488224,1754885440258,-460.0,0.00020227,2]
[378488225,1754885440268,-460.0,0.00020227,2]
[378488226,1754885440278,-460.0,0.00020227,2]
[378488227,1754885440287,-460.0,0.00020227,2]
[378488228,1754885440296,-460.0,0.00020227,2]
[378488229,1754885440307,-260.25751438,0.00020227,2]
[378488230,1754885440317,-853.01,0.00020227,2]
[378488231,1754885440326,-460.0,0.00020227,2]
[378488232,1754885440335,-460.0,0.00020227,2]
[378488233,1754885440345,-460.0,0.00020227,2]
[378488234,1754885440355,-460.0,0.00020227,2]
[378488235,1754885440364,-3270.82,0.00020227,2]
[378488236,1754885440374,-539.67,0.00020227,2]
[378488237,1754885440383,-969.82,0.00020227,2]
[378488238,1754885440393,-460.0,0.00020227,2]
[378488239,1754885440402,-460.0,0.00020227,2]
[378488240,1754885440412,-460.0,0.00020227,2]
[378488241,1754885440421,-460.0,0.00020227,2]
[378488242,1754885440431,-460.0,0.00020227,2]
[378488243,1754885440440,-460.0,0.00020227,2]
[378488244,1754885440449,-1614.23,0.00020227,2]
[378488245,1754885440458,-460.0,0.00020227,2]
[378488246,1754885440467,-460.0,0.00020227,2]
[378488247,1754885440476,-460.0,0.00020227,2]
[378488248,1754885440486,-460.0,0.00020227,2]
[378488249,1754885440495,-1253.7,0.00020227,2]
[378488250,1754885440504,-1450.99,0.00020227,2]
[378488251,1754885440514,-460.0,0.00020227,2]
[378488252,1754885440523,-870.94,0.00020227,2]
[378488253,1754885440532,-460.0,0.00020227,2]
[378488254,1754885440541,-779.81,0.00020227,2]
[378488255,1754885440551,-500.0,0.0002024,2]
[378488256,1754885440560,-500.0,0.00020342,2]
[378488257,1754885440569,-151.0,0.00020342,2]
[378488258,1754885440579,-500.0,0.00020342,2]
[378488259,1754885440588,-151.0,0.00020342,2]
[378488260,1754885440598,-500.0,0.00020342,2]
[378488261,1754885440607,-500.0,0.00020342,2]
[378488262,1754885440617,-151.0,0.00020342,2]
[378488263,1754885440626,-151.0,0.00020342,2]
[378488264,1754885440635,-151.0,0.00020342,2]
[378488265,1754885440645,-6987.8936065,0.00020342,2]
[378488266,1754885440654,-250.0,0.00020342,2]
[378488267,1754885440663,-250.0,0.00020342,2]
[378488268,1754885440673,-250.0,0.00020342,2]
[378488269,1754885440682,-2183.31810187,0.00020342,2]
[378488270,1754885440691,-151.0,0.00020342,2]
[378488271,1754885440701,-151.0,0.00020342,2]
[378488272,1754885440710,-151.0,0.00020342,2]
[378488273,1754885440719,-151.0,0.00020342,2]
[378488274,1754885440729,-151.0,0.00020342,2]
[378488275,1754885440738,-151.0,0.00020342,2]
[378488276,1754885440747,-151.0,0.00020342,2]
[378488277,1754885440756,-151.0,0.00020342,2]
[378488278,1754885440765,-151.0,0.00020342,2]
[378488279,1754885440774,-151.0,0.00020342,2]
[378488280,1754885440784,-151.0,0.00020342,2]
[378488281,1754885440793,-151.0,0.00020342,2]
[378488282,1754885440802,-151.0,0.00020342,2]
[378488283,1754885440811,-151.0,0.00020342,2]
[378488284,1754885440820,-151.0,0.00020342,2]
[378488285,1754885440829,-151.0,0.00020342,2]
[378488286,1754885440838,-151.0,0.00020342,2]
[378488287,1754885440849,-200.0,0.00020351,15]
[378488288,1754885440858,-200.0,0.00020351,15]
[378488289,1754885440867,-200.0,0.00020351,15]
[378488290,1754885440876,-200.0,0.00020351,15]
[378488291,1754885440886,-200.0,0.00020351,15]
[378488292,1754885440895,-851.6,0.0002039,2]
[378488293,1754885440905,-460.0,0.0002039,2]
[378488294,1754885440914,-2006.04,0.0002039,2]
[378488295,1754885440923,-1593.97,0.0002039,2]
[378488296,1754885440932,-460.0,0.0002039,2]
[378488297,1754885440941,-460.0,0.0002039,2]
[378488298,1754885440951,-460.0,0.0002039,2]
[378488299,1754885440960,-460.0,0.0002039,2]
[378488300,1754885440969,-743.63,0.0002039,2]
[378488301,1754885440979,-2264.10087164,0.00020397,2]
[378488302,1754885440988,-460.0,0.00020399,2]
[378488303,1754885440997,-460.0,0.00020399,2]
[378488304,1754885441006,-460.0,0.00020399,2]
[378488305,1754885441015,-460.0,0.00020399,2]
[378488306,1754885441024,-460.0,0.00020399,2]
[378488307,1754885441033,-460.0,0.00020399,2]
[378488308,1754885441043,-460.0,0.00020399,2]
[378488309,1754885441053,-460.0,0.00020399,2]
[378488310,1754885441063,-460.0,0.00020399,2]
[378488311,1754885441071,-546.7,0.00020399,2]
[378488312,1754885441081,-460.0,0.00020399,2]
[378488313,1754885441090,-432.470631,0.00020399,2]
[378488314,1754885441099,-528.93,0.00020399,2]
[378488315,1754885441109,-460.0,0.00020399,2]
[378488316,1754885441118,-460.0,0.00020399,2]
[378488317,1754885441127,-2889.14,0.000204,2]
[378488318,1754885441137,-460.0,0.000204,2]
[378488319,1754885441146,-460.0,0.000204,2]
[378488320,1754885441155,-1381.11,0.000204,2]
[378488321,1754885441164,-1475.73,0.000204,2]
[378488322,1754885441173,-1919.32,0.000204,2]
[378488323,1754885441182,-460.0,0.000204,2]
[378488324,1754885441191,-486.37,0.000204,2]
[378488325,1754885441200,-620.62,0.000204,2]
[378488326,1754885441209,-460.0,0.000204,2]
[378488327,1754885441218,-1014.76,0.000204,2]
[378488328,1754885441229,-314.206137,0.000204,2]
[378488329,1754885441239,-875.06,0.000204,2]
[378488330,1754885441248,-2347.87260389,0.00020452,2]
[378488331,1754885441257,-2292.84201233,0.00020499,2]
[378488332,1754885441268,-151.0,0.000205,3]
[378488333,1754885441277,-996.95,0.000205,2]
[378488334,1754885441287,-460.0,0.00020501,2]
[378488335,1754885441296,-460.0,0.00020501,2]
[378488336,1754885441306,-460.0,0.00020501,2]
[378488337,1754885441317,-460.0,0.00020501,2]
[378488338,1754885441328,-460.0,0.00020501,2]
[378488339,1754885441338,-460.0,0.00020501,2]
[378488340,1754885441348,-332.64594257,0.00020501,2]
[378488341,1754885441357,-483.37087868,0.00020501,2]
[378488342,1754885441366,-463.54,0.00020501,2]
[378488343,1754885441377,-460.0,0.00020501,2]
[378488344,1754885441387,-460.0,0.00020501,2]
[378488345,1754885441398,-460.0,0.00020501,2]
[378488346,1754885441408,-460.0,0.00020501,2]
[378488347,1754885441417,-460.0,0.00020501,2]
[378488348,1754885441427,-853.01,0.00020501,2]
[378488349,1754885441436,-460.0,0.00020501,2]
[378488350,1754885441445,-460.0,0.00020501,2]
[378488351,1754885441455,-460.0,0.00020501,2]
[378488352,1754885441464,-460.0,0.00020501,2]
[378488353,1754885441473,-3270.82,0.00020501,2]
[378488354,1754885441483,-539.67,0.00020501,2]
[378488355,1754885441494,-969.82,0.00020501,2]
[378488356,1754885441504,-460.0,0.00020501,2]
[378488357,1754885441514,-460.0,0.00020501,2]
[378488358,1754885441523,-460.0,0.00020501,2]
[378488359,1754885441532,-460.0,0.00020501,2]
[378488360,1754885441541,-460.0,0.00020501,2]
[378488361,1754885441550,-460.0,0.00020501,2]
[378488362,1754885441559,-1614.23,0.00020501,2]
[378488363,1754885441568,-460.0,0.00020501,2]
[378488364,1754885441577,-460.0,0.00020501,2]
[378488365,1754885441587,-460.0,0.00020501,2]
[378488366,1754885441596,-460.0,0.00020501,2]
[378488367,1754885441605,-1253.7,0.00020501,2]
[378488368,1754885441615,-1450.99,0.00020501,2]
[378488369,1754885441625,-870.94,0.00020501,2]
[378488370,1754885441635,-460.0,0.00020501,2]
[378488371,1754885441644,-779.81,0.00020501,2]
[378488372,1754885441654,-1593.74,0.00020502,2]
[378488373,1754885441666,-2434.74389024,0.00020507,2]
[378488374,1754885441675,-302.44549568,0.00020524,2]
[378488375,1754885441687,-2524.82941417,0.00020562,2]
[378488376,1754885441698,-734.99609232,0.00020617,2]
[378488377,1754885441708,-851.6,0.00020664,2]
[378488378,1754885441718,-460.0,0.00020664,2]
[378488379,1754885441728,-2006.04,0.00020664,2]
[378488380,1754885441738,-1593.97,0.00020664,2]
[378488381,1754885441748,-460.0,0.00020664,2]
[378488382,1754885441757,-460.0,0.00020664,2]
[378488383,1754885441766,-599.14362892,0.00020664,2]
[378488384,1754885441775,-460.0,0.00020664,2]
[378488385,1754885441785,-743.63,0.00020664,2]
[378488386,1754885441938,-581.912064,0.00020673,2]
[378488387,1754885441949,-460.0,0.00020673,2]
[378488388,1754885441959,-460.0,0.00020673,2]
[378488389,1754885441968,-460.0,0.00020673,2]
[378488390,1754885441977,-460.0,0.00020673,2]
[378488391,1754885441987,-460.0,0.00020673,2]
[378488392,1754885441996,-546.7,0.00020673,2]
[378488393,1754885442005,-460.0,0.00020673,2]
[378488394,1754885442015,-528.93,0.00020673,2]
[378488395,1754885442024,-460.0,0.00020673,2]
[378488396,1754885442034,-460.0,0.00020673,2]
[378488397,1754885442043,-2889.14,0.00020674,2]
[378488398,1754885442053,-460.0,0.00020674,2]
[378488399,1754885442062,-336.64404498,0.00020674,2]
[378488400,1754885442072,-1381.11,0.00020674,2]
[378488401,1754885442081,-1475.73,0.00020674,2]
[378488402,1754885442091,-1919.32,0.00020674,2]
[378488403,1754885442100,-460.0,0.00020674,2]
[378488404,1754885442110,-486.37,0.00020674,2]
[378488405,1754885442119,-620.62,0.00020674,2]
[378488406,1754885442128,-460.0,0.00020674,2]
[378488407,1754885442137,-1014.76,0.00020674,2]
[378488408,1754885442146,-875.06,0.00020674,2]
[378488409,1754885442155,-265.33,0.000207,2]
[378488410,1754885442164,-186.33809383,0.00020721,2]
[378488411,1754885442173,-1000.0,0.00020721,2]
[378488412,1754885442183,-1000.0,0.00020721,2]
[378488413,1754885442191,-1000.0,0.00020721,2]